bitfinex-derivatives/quotes_SOLF0:USTF0_20250124
["timestamp","ask_amount","ask_price","bid_price","bid_amount"]
[1737730104561,3.7,269.92,269.74,3.707]
[1737730104861,0.02488266,269.81,269.76,0.02650923]
[1737730105263,22.26717998,269.93,269.72,22.26717998]
[1737730105452,22.26717998,269.93,269.76,0.02560111]
[1737730105656,3.7064,269.79,269.76,0.02560111]
[1737730105851,22.26717998,269.93,269.66,1.2155]
[1737730106055,0.02485318,269.8,269.75,0.02822921]
[1737730106261,3.7064,269.79,269.75,0.02822921]
[1737730106461,3.7064,269.79,269.72,3.7073]
[1737730106659,20.33160341,269.94,269.74,22.26717998]
[1737730106960,22.26717998,269.98,269.74,22.26717998]
[1737730107357,3.7056,269.85,269.82,0.02781435]
[1737730107758,3.7055,269.86,269.82,0.02781435]
[1737730107957,0.02596755,269.88,269.82,0.02781435]
[1737730110660,0.02596755,269.88,269.82,3.73361435]
[1737730110861,0.02596755,269.88,269.82,0.02781435]
[1737730111163,3.7053,269.87,269.82,0.02781435]
[1737730111564,0.02596755,269.88,269.82,0.02781435]
[1737730111862,3.7057,269.84,269.82,0.02781435]
[1737730112759,3.7057,269.84,269.82,1.435e-05]
[1737730112960,3.68,269.85,269.66,1.2824]
[1737730113268,13.71151841,269.82,269.66,1.2824]
[1737730113466,1.2592,269.84,269.66,1.2824]
[1737730113668,3.7064,269.79,269.69,3.7076]
[1737730113863,3.68,269.85,269.66,2.5424]
[1737730114059,3.7061,269.81,269.66,2.5424]
[1737730114263,0.02653541,269.78,269.73,0.02811987]
[1737730116269,3.7068,269.76,269.73,0.02811987]
[1737730116465,0.02653541,269.78,269.73,0.02811987]
[1737730117168,3.707,269.75,269.58,6.43144081]
[1737730117365,0.02653541,269.78,269.58,6.43144081]
[1737730117560,1.4108,269.82,269.58,6.43144081]
[1737730117865,13.71151841,269.78,269.53,13.71151841]
[1737730118264,13.71151841,269.73,269.5,2.5542]
[1737730118566,0.02666333,269.68,269.63,0.02402178]
[1737730119666,3.708,269.67,269.63,0.02402178]
[1737730119867,0.02666333,269.68,269.63,0.02402178]
[1737730120672,0.02666333,269.68,269.63,3.73252178]
[1737730120863,0.02666333,269.68,269.63,0.02402178]
[1737730121462,3.7083,269.65,269.63,0.02402178]
[1737730122270,3.7094,269.57,269.5,1.2955]
[1737730122667,3.7096,269.56,269.38,13.71151841]
[1737730122874,3.64,269.64,269.32,13.71151841]
[1737730122875,13.71151841,269.57,269.32,13.71151841]
[1737730123173,13.71151841,269.57,269.37,3.7121]
[1737730123373,0.02410035,269.47,269.42,0.02456713]
[1737730124876,3.64,269.46,269.24,2.648]
[1737730125072,13.71151841,269.42,269.24,2.648]
[1737730125274,13.71151841,269.37,269.2,3.7144]
[1737730125573,13.71151841,269.37,269.11,1.2641]
[1737730125774,26.08104958,269.43,269.29,3.7131]
[1737730125973,1.2439,269.45,269.23,22.36974958]
[1737730126175,0.02563211,269.39,269.33,0.02363443]
[1737730127778,0.02563211,269.39,269.37,3.712]
[1737730127974,5.07977122,269.51,269.33,22.39338401]
[1737730128170,5.07977122,269.51,269.33,22.36974958]
[1737730128368,5.07977122,269.51,269.43,3.7113]
[1737730128774,5.07977122,269.51,269.33,22.36974958]
[1737730129169,0.02633415,269.45,269.39,0.02779661]
[1737730132184,0.02633415,269.45,269.44,3.7112]
[1737730132578,0.02633415,269.45,269.39,0.02779661]
[1737730135780,22.36974958,269.42,269.24,2.5834]
[1737730136174,22.36974958,269.37,269.13,22.36974958]
[1737730136385,3.7129,269.32,269.25,3.7137]
[1737730136780,22.36974958,269.37,269.14,1.2122]
[1737730137085,0.02665176,269.31,269.29,3.7132]
[1737730137378,3.6,269.41,269.23,0.0236396]
[1737730137683,0.02512959,269.33,269.18,22.19157958]
[1737730137874,0.02512959,269.33,269.29,0.0244067]
[1737730138075,3.6,269.41,269.24,22.36974958]
[1737730138283,3.6,269.41,269.28,0.02642416]
[1737730139281,3.7124,269.35,269.28,0.02642416]
[1737730139587,0.02644488,269.37,269.28,0.02642416]
[1737730140077,0.02644488,269.37,269.14,23.58194958]
[1737730140282,22.36974958,269.38,269.14,23.58194958]
[1737730140480,22.36974958,269.38,269.14,1.2122]
[1737730140982,22.36974958,269.28,269.13,1.3948]
[1737730141380,3.7145,269.2,269.18,0.02659637]
[1737730141581,3.7145,269.2,269.04,1.2146]
[1737730141582,3.7145,269.2,269.04,2.574]
[1737730141781,22.36974958,269.29,269.04,2.574]
[1737730142387,0.1337,269.35,269.08,22.36974958]
[1737730142783,0.02506332,269.24,269.19,0.02392508]
[1737730143087,22.36974958,269.24,269.1,3.7158]
[1737730143285,22.39818118,269.24,269.04,2.574]
[1737730143587,22.36974958,269.24,269.04,2.574]
[1737730144291,3.7141,269.23,269.14,3.7152]
[1737730144489,0.02826417,269.17,269.11,0.02551545]
[1737730144691,3.74316417,269.17,269.11,0.02551545]
[1737730145091,0.02826417,269.17,269.11,0.02551545]
[1737730146682,3.74316417,269.17,269.11,0.02551545]
[1737730146882,0.02826417,269.17,269.11,0.02551545]
[1737730148287,3.7156,269.13,269.11,0.02551545]
[1737730148486,22.36974958,269.14,268.87,1.3089]
[1737730148691,22.36974958,269.14,268.88,2.64]
[1737730149189,22.36974958,269.09,268.71,22.36974958]
[1737730149394,22.36974958,269.03,268.79,22.36974958]
[1737730149694,0.02736908,268.99,268.84,22.36974958]
[1737730149889,0.02736908,268.99,268.85,1.1878]
[1737730150188,0.02617143,268.94,268.89,22.36974958]
[1737730150387,26.04974958,269.15,268.9,2.64]
[1737730150787,26.04974958,269.15,269.0,0.17352]
[1737730151093,3.68,269.19,269.0,0.17352]
[1737730151488,0.02398508,269.12,269.07,0.02679975]
[1737730158405,3.7157,269.11,269.07,0.02679975]
[1737730158705,0.02398508,269.12,269.07,0.02679975]
[1737730158907,3.716,269.09,269.07,0.02679975]
[1737730159108,13.78350113,269.1,269.0,2e-05]
[1737730159405,3.7171,269.02,269.0,2e-05]
[1737730160003,3.7165,269.06,269.0,2e-05]
[1737730160205,0.02569635,269.04,269.0,2e-05]
[1737730161302,0.02569635,269.04,268.84,5.17043859]
[1737730161507,0.02569635,269.04,268.93,13.78350113]
[1737730161806,0.02387331,268.97,268.83,13.78350113]
[1737730162204,3.7178,268.96,268.88,3.7188]
[1737730162407,0.02843133,268.93,268.88,3.7188]
[1737730163307,0.02843133,268.93,268.86,3.7191]
[1737730163506,0.02843133,268.93,268.83,13.78350113]
[1737730163907,3.74673133,268.93,268.83,13.78350113]
[1737730164209,0.02843133,268.93,268.78,13.78350113]
[1737730164502,13.78350113,269.0,268.71,13.78350113]
[1737730164708,0.02785417,268.88,268.71,13.78350113]
[1737730164907,13.78350113,269.0,268.71,13.78350113]
[1737730165101,0.02444265,268.82,268.71,13.78350113]
[1737730165299,13.78350113,269.0,268.71,13.78350113]
[1737730165509,0.02360192,268.79,268.78,3.7202]
[1737730165706,3.7192,268.86,268.71,13.78350113]
[1737730165906,0.02365108,268.81,268.71,13.78350113]
[1737730166105,3.7187,268.9,268.71,13.78350113]
[1737730166299,13.78350113,269.0,268.71,13.78350113]
[1737730166504,1.867e-05,268.79,268.78,3.7203]
[1737730166705,13.78350113,269.0,268.83,0.02567537]
[1737730166908,13.78350113,269.0,268.76,13.78350113]
[1737730167207,13.78350113,268.95,268.72,3.8194]
[1737730167707,0.02734411,268.86,268.81,0.0237938]
[1737730168106,3.7198,268.82,268.74,3.7208]
[1737730168608,13.78350113,268.85,268.75,0.02460794]
[1737730169010,0.02365119,268.83,268.75,0.02460794]
[1737730169206,3.7205,268.77,268.75,0.02460794]
[1737730169711,0.02365119,268.83,268.75,0.02460794]
[1737730171007,3.74335119,268.83,268.76,3.7205]
[1737730171313,3.74335119,268.83,268.75,0.02460794]
[1737730171912,0.02365119,268.83,268.75,3.74520794]
[1737730172209,3.7198,268.82,268.75,3.74520794]
[1737730172619,3.7198,268.82,268.75,0.02460794]
[1737730172910,0.02365119,268.83,268.75,0.02460794]
[1737730173704,0.02365119,268.83,268.81,3.7198]
[1737730174604,13.78350113,268.97,268.84,3.7194]
[1737730175008,3.7184,268.92,268.76,3.8246]
[1737730175312,13.78350113,268.97,268.84,3.7194]
[1737730175509,13.78350113,268.97,268.76,3.8246]
[1737730175704,0.02630813,268.93,268.88,0.02588688]
[1737730175908,13.78350113,268.92,268.88,0.02588688]
[1737730176111,3.7187,268.89,268.88,0.02588688]
[1737730176407,0.02630813,268.93,268.88,0.02588688]
[1737730176714,3.7187,268.9,268.88,0.02588688]
[1737730178306,0.02630813,268.93,268.88,0.02588688]
[1737730178513,0.02630813,268.93,268.91,3.7184]
[1737730180111,20.33160341,269.05,268.89,3.9318]
[1737730180614,13.78350113,268.96,268.72,13.78350113]
[1737730180915,13.78350113,268.96,268.72,16.44600113]
[1737730181218,13.78350113,268.96,268.78,3.7202]
[1737730181415,0.02830353,268.87,268.81,0.02518229]
[1737730181612,13.78350113,268.91,268.72,2.6625]
[1737730181809,13.78350113,268.91,268.74,3.7208]
[1737730182116,3.7196,268.83,268.81,0.02691067]
[1737730182416,0.02570525,268.87,268.62,13.78350113]
[1737730182611,13.78350113,268.86,268.62,13.78350113]
[1737730183218,3.7199,268.81,268.71,3.7212]
[1737730183617,0.02700796,268.79,268.73,0.0265544]
[1737730184519,3.7188,268.89,268.73,0.0265544]
[1737730184819,2.465,268.94,268.67,13.78350113]
[1737730184820,13.78350113,268.91,268.67,13.78350113]
[1737730185113,3.7196,268.84,268.67,13.78350113]
[1737730185313,13.78350113,268.91,268.67,13.78350113]
[1737730185615,13.78350113,268.86,268.76,0.02829827]
[1737730185928,13.78350113,268.86,268.62,13.78350113]
[1737730186117,0.02386065,268.84,268.78,0.02809921]
[1737730186418,0.02643257,268.84,268.78,0.02708207]
[1737730186819,3.7198,268.82,268.78,0.02708207]
[1737730187320,0.02643257,268.84,268.78,0.02708207]
[1737730187617,3.7201,268.8,268.78,0.02708207]
[1737730188916,0.02643257,268.84,268.78,3.74718207]
[1737730189221,0.02643257,268.84,268.78,0.02708207]
[1737730189522,0.02643257,268.84,268.78,3.74728207]
[1737730189724,0.02643257,268.84,268.78,0.02708207]
[1737730192422,1.343,268.95,268.78,0.02708207]
[1737730192622,1.343,268.95,268.72,13.78350113]
[1737730192819,1.343,268.95,268.78,3.7201]
[1737730192820,3.7188,268.89,268.78,3.7201]
[1737730193121,1.343,268.95,268.72,13.78350113]
[1737730193324,13.78350113,268.91,268.68,1.2369]
[1737730193521,0.02688799,268.86,268.81,0.02451599]
[1737730193918,3.7195,268.84,268.81,0.02451599]
[1737730194114,0.02688799,268.86,268.81,0.02451599]
[1737730195020,0.02688799,268.86,268.83,3.7196]
[1737730195323,0.02688799,268.86,268.81,0.02451599]
[1737730196924,3.7197,268.83,268.81,0.02451599]
[1737730197815,17.50320113,268.83,268.81,1.599e-05]
[1737730198920,3.7214,268.7,268.57,13.78350113]
[1737730199115,13.78350113,268.77,268.6,3.7227]
[1737730199328,4.8852,268.82,268.58,1.2341]
[1737730200029,0.0240855,268.73,268.67,0.02731765]
[1737730200518,3.7212,268.72,268.67,0.02731765]
[1737730200721,0.0240855,268.73,268.67,0.02731765]
[1737730201526,0.0240855,268.73,268.58,1.09091765]
[1737730202628,0.0240855,268.73,268.63,0.0238913]
[1737730202929,13.78350113,268.81,268.63,0.0238913]
[1737730203228,13.78350113,268.81,268.56,13.11027154]
[1737730203229,0.02588083,268.71,268.56,13.11027154]
[1737730203428,0.02588083,268.71,268.69,3.74890282]
[1737730203624,0.02588083,268.71,268.69,3.7215]
[1737730204023,3.7216,268.69,268.67,0.0278741]
[1737730204220,0.02588083,268.71,268.67,0.0278741]
[1737730204619,3.7216,268.69,268.67,0.0278741]
[1737730204828,0.02588083,268.71,268.67,0.0278741]
[1737730205224,0.02588083,268.71,268.69,3.7215]
[1737730205624,3.72,268.8,268.7,3.7213]
[1737730205831,5.07977122,268.84,268.67,0.0278741]
[1737730206026,5.07977122,268.84,268.61,13.78350113]
[1737730206229,8.79957122,268.82,268.72,3.721]
[1737730206528,5.07977122,268.82,268.72,3.721]
[1737730206728,0.02368889,268.8,268.74,0.02664256]
[1737730207132,5.07977122,268.82,268.74,0.02664256]
[1737730207429,0.02537863,268.8,268.75,3.7206]
[1737730207631,0.02537863,268.8,268.74,0.02664256]
[1737730208233,0.02537863,268.8,268.74,3.74744256]
[1737730208832,7.54168681,268.96,268.74,0.02664256]
[1737730209029,7.54168681,268.96,268.78,13.78350113]
[1737730209332,5.07977122,268.97,268.78,13.78350113]
[1737730209532,18.86327235,268.97,268.75,2.7427]
[1737730209827,3.7176,268.98,268.75,2.7427]
[1737730210031,0.02749804,268.89,268.83,0.02820206]
[1737730210227,20.33160341,269.0,268.83,0.02820206]
[1737730210432,20.33160341,269.0,268.87,13.78350113]
[1737730210827,20.33160341,269.0,268.98,3.7174]
[1737730211028,40.67155252,269.02,268.84,13.78350113]
[1737730211233,61.12657322,269.04,268.97,13.78350113]
[1737730211430,61.12657322,269.04,269.03,17.50030113]
[1737730211738,0.0277988,269.03,268.93,13.78350113]
[1737730211932,0.0277988,269.03,269.01,0.02458535]
[1737730212131,5.14832565,269.13,268.98,13.78350113]
[1737730212428,5.14832565,269.13,269.04,3.7167]
[1737730212429,6.13e-05,269.05,269.04,3.7167]
[1737730212629,8.695e-05,269.13,268.99,0.0241527]
[1737730212833,8.695e-05,269.13,268.85,82.64]
[1737730213029,8.695e-05,269.13,269.0,13.78350113]
[1737730213532,8.695e-05,269.13,268.95,13.78350113]
[1737730213533,3.7157,269.12,268.95,13.78350113]
[1737730213733,0.0246943,269.09,269.04,0.02421395]
[1737730215427,0.0246943,269.09,269.07,3.7162]
[1737730215635,9.43e-05,269.09,269.07,3.7162]
[1737730216541,3.7138,269.25,269.04,22.43418553]
[1737730216738,1.1927,269.28,269.11,22.40997158]
[1737730216937,4.9061,269.28,269.11,22.40997158]
[1737730217133,1.4874,269.33,269.16,22.40997158]
[1737730217335,1.2374,269.41,269.21,22.40997158]
[1737730217634,2.7248,269.41,269.21,22.40997158]
[1737730217933,2.7248,269.41,269.28,0.02479353]
[1737730217934,0.02543106,269.34,269.28,0.02479353]
[1737730218137,0.02543106,269.34,269.11,22.40997158]
[1737730218333,22.40997158,269.37,269.14,3.7152]
[1737730218738,22.40997158,269.32,269.11,22.40997158]
[1737730218934,1.1877,269.31,269.11,22.40997158]
[1737730219238,0.02437761,269.24,269.18,0.02689992]
[1737730220634,0.02437761,269.24,269.22,3.7141]
[1737730220837,0.02437761,269.24,269.18,0.02689992]
[1737730220838,1.1877,269.4,269.19,22.40997158]
[1737730221138,3.7119,269.39,269.3,3.713]
[1737730221338,1.2955,269.5,269.29,22.40997158]
[1737730221735,1.2955,269.5,269.3,3.713]
[1737730221940,1.2955,269.5,269.24,22.40997158]
[1737730222140,1.2955,269.5,269.37,0.024222]
[1737730222141,0.02458568,269.42,269.37,0.024222]
[1737730223258,0.02458568,269.42,269.37,3.736222]
[1737730223450,0.02458568,269.42,269.37,0.024222]
[1737730223855,0.02458568,269.42,269.39,3.7118]
[1737730224656,0.02458568,269.42,269.37,0.024222]
[1737730226158,3.7116,269.41,269.37,0.024222]
[1737730226558,0.02458568,269.42,269.37,0.024222]
[1737730226754,8.568e-05,269.42,269.4,22.40997158]
[1737730227155,2.8381,269.61,269.4,22.40997158]
[1737730227360,2.8381,269.61,269.45,22.40997158]
[1737730228258,2.8381,269.61,269.5,0.02804643]
[1737730228560,0.02834196,269.56,269.5,0.02804643]
[1737730228765,0.02834196,269.56,269.54,3.7098]
[1737730229062,0.02834196,269.56,269.5,0.02804643]
[1737730230356,0.02834196,269.56,269.5,22.43801801]
[1737730230560,0.02834196,269.56,269.54,3.7097]
[1737730232057,4.196e-05,269.56,269.55,22.40997158]
[1737730232261,2.8943,269.78,269.62,3.7086]
[1737730232461,2.8943,269.78,269.55,22.40997158]
[1737730232661,3.7075,269.71,269.59,3.709]
[1737730232862,22.40997158,269.77,269.59,3.709]
[1737730233358,0.024894,269.71,269.65,0.02713733]
[1737730233561,3.708,269.67,269.65,0.02713733]
[1737730234564,3.7089,269.61,269.49,22.40997158]
[1737730234762,1.2934,269.7,269.52,3.71]
[1737730235060,3.7078,269.69,269.49,22.40997158]
[1737730235266,1.2934,269.7,269.55,22.40997158]
[1737730235856,0.02677447,269.65,269.6,0.02701046]
[1737730236263,3.7087,269.62,269.6,0.02701046]
[1737730236459,0.02677447,269.65,269.6,0.02701046]
[1737730236952,3.7091,269.59,269.45,22.40997158]
[1737730237155,2.871,269.64,269.49,3.7104]
[1737730237354,11.15,269.49,269.11,73.70287316]
[1737730237559,22.40997158,269.38,269.11,73.70287316]
[1737730237761,22.40997158,269.38,269.2,3.89022]
[1737730238059,0.02812567,269.32,269.26,0.02364603]
[1737730238963,0.02812567,269.32,269.2,0.17582]
[1737730239166,1.27232567,269.32,269.2,0.17582]
[1737730239365,3.7139,269.25,269.2,0.17582]
[1737730239556,1.2442,269.32,269.2,0.17582]
[1737730239959,0.02806422,269.29,269.23,0.02506546]
[1737730245274,3.7134,269.28,269.23,0.02506546]
[1737730246365,0.02806422,269.29,269.23,0.02506546]
[1737730246969,0.02806422,269.29,269.1,22.40997158]
[1737730247271,3.7142,269.23,269.1,22.40997158]
[1737730247678,1.2442,269.32,269.15,3.7151]
[1737730247878,1.2442,269.32,269.1,22.40997158]
[1737730248080,0.02812089,269.26,269.21,0.02769391]
[1737730249575,0.02812089,269.26,269.1,22.40997158]
[1737730250479,0.02812089,269.26,269.19,3.7145]
[1737730251180,0.02812089,269.26,269.15,0.02391068]
[1737730251974,0.02812089,269.26,269.15,13.80348113]
[1737730252485,0.02812089,269.26,269.24,3.7139]
[1737730253980,0.00056764,269.26,269.24,3.7139]
[1737730257082,1.5609,269.37,269.35,3.7124]
[1737730257284,1.2286,269.45,269.25,13.77957045]
[1737730257582,3.7112,269.44,269.25,13.77957045]
[1737730257780,1.2286,269.45,269.25,13.77957045]
[1737730258178,0.02367544,269.38,269.33,3.7126]
[1737730258481,0.02367544,269.38,269.32,0.02853105]
[1737730259678,0.02367544,269.38,269.2,13.77957045]
[1737730259981,1.2286,269.45,269.25,13.77957045]
[1737730260376,13.77957045,269.44,269.2,13.77957045]
[1737730260579,13.77957045,269.39,269.15,13.77957045]
[1737730260776,3.7128,269.32,269.15,13.77957045]
[1737730260980,0.02722102,269.35,269.29,0.02729338]
[1737730261278,3.7135,269.27,269.17,3.7148]
[1737730261779,3.7134,269.28,269.1,13.77957045]
[1737730261983,17.31957045,269.34,269.1,13.77957045]
[1737730262178,2.7971,269.27,269.05,13.77957045]
[1737730262374,3.7145,269.2,269.1,3.7158]
[1737730262575,0.02835008,269.19,269.13,0.02666017]
[1737730262781,0.02835008,269.19,268.98,2.8911]
[1737730263078,2.7971,269.27,268.98,2.8911]
[1737730263280,2.7971,269.27,269.09,13.77957045]
[1737730263579,13.77957045,269.25,268.98,2.8911]
[1737730264085,13.80700875,269.14,269.09,0.02478475]
[1737730264281,13.77957045,269.14,268.89,149.9940205]
[1737730264475,3.52,269.16,268.89,149.9940205]
[1737730264476,13.77957045,269.09,268.89,149.9940205]
[1737730264780,2.708,269.08,268.87,5.76221626]
[1737730264984,2.708,269.08,268.79,150.25607505]
[1737730265183,13.77957045,269.04,268.79,164.0356455]
[1737730265581,0.02780624,268.94,268.89,0.02610237]
[1737730265777,0.02780624,268.94,268.79,150.25607505]
[1737730266177,0.02780624,268.94,268.59,0.0972]
[1737730266384,3.7189,268.89,268.74,3.7208]
[1737730266581,3.7189,268.89,268.59,0.0972]
[1737730266582,13.77957045,268.93,268.66,13.77957045]
[1737730266784,2.7548,268.88,268.66,13.77957045]
[1737730267284,0.02723072,268.82,268.66,13.77957045]
[1737730267685,0.02723072,268.82,268.65,22.45780801]
[1737730267883,0.02723072,268.82,268.58,22.45780801]
[1737730268087,22.45780801,268.79,268.58,22.45780801]
[1737730268386,0.02603119,268.73,268.58,22.45780801]
[1737730268582,0.02603119,268.73,268.53,22.45780801]
[1737730269082,22.45780801,268.74,268.53,22.45780801]
[1737730269384,0.02549483,268.66,268.59,3.7228]
[1737730269585,0.02549483,268.66,268.48,22.45780801]
[1737730269880,26.17930801,268.69,268.54,3.7235]
[1737730270084,26.17930801,268.69,268.48,22.45780801]
[1737730270085,1.2228,268.68,268.48,22.45780801]
[1737730270285,0.02394539,268.6,268.43,22.45780801]
[1737730270685,3.7224,268.63,268.5,3.724]
[1737730270887,0.02396642,268.54,268.5,154.09181998]
[1737730271684,0.02396642,268.54,268.5,150.36781998]
[1737730271882,0.02396642,268.54,268.51,3.7239]
[1737730272085,0.02396642,268.54,268.5,150.36781998]
[1737730272290,22.45780801,268.53,268.48,143.03981998]
[1737730272494,22.45780801,268.53,268.48,117.8548122]
[1737730272697,22.45780801,268.53,268.48,113.27733209]
[1737730272893,3.7243,268.49,268.48,113.27733209]
[1737730273290,22.45780801,268.53,268.24,2.9403]
[1737730273487,22.45780801,268.48,268.38,3.7257]
[1737730274096,0.02523759,268.41,268.36,3.7261]
[1737730274294,0.02523759,268.41,268.24,25.39810801]
[1737730274896,22.45780801,268.48,268.24,25.39810801]
[1737730275099,0.02717582,268.35,268.24,2.9403]
[1737730275398,22.45780801,268.38,268.24,2.9403]
[1737730275589,22.45780801,268.38,268.14,179.93865517]
[1737730275793,0.0270442,268.32,268.15,4.022]
[1737730276194,22.45780801,268.38,268.15,4.022]
[1737730276391,22.45780801,268.33,268.15,4.022]
[1737730276591,0.02458393,268.26,268.15,4.022]
[1737730277204,0.02458393,268.26,268.15,7.7509]
[1737730277495,0.02458393,268.26,268.15,4.022]
[1737730279096,0.02458393,268.26,268.24,3.7277]
[1737730279295,22.45780801,268.33,268.15,4.022]
[1737730279496,22.45780801,268.33,268.2,3.7283]
[1737730279698,22.45780801,268.33,268.15,4.022]
[1737730279893,22.45780801,268.38,268.16,22.45780801]
[1737730280192,22.45780801,268.43,268.16,22.45780801]
[1737730280394,22.45780801,268.43,268.21,22.45780801]
[1737730280595,22.45780801,268.43,268.39,3.7256]
[1737730280796,22.45780801,268.43,268.24,0.02773245]
[1737730281097,22.45780801,268.53,268.26,22.45780801]
[1737730281297,22.45780801,268.53,268.46,3.7246]
[1737730281500,22.45780801,268.58,268.31,22.45780801]
[1737730281900,0.02778059,268.52,268.47,0.02779203]
[1737730284103,0.02778059,268.52,268.47,0.00223111]
[1737730284302,22.45780801,268.48,268.47,0.00223111]
[1737730284705,22.45780801,268.48,268.21,22.45780801]
[1737730284904,22.45780801,268.48,268.22,1.2675]
[1737730285105,22.45780801,268.48,268.26,22.45780801]
[1737730285507,22.45780801,268.48,268.22,3.9574]
[1737730285698,3.7251,268.44,268.22,3.9574]
[1737730285904,0.02389781,268.38,268.32,0.02370335]
[1737730286507,0.02389781,268.38,268.33,3.7264]
[1737730286703,0.02389781,268.38,268.32,0.02370335]
[1737730287703,3.74979781,268.38,268.32,0.02370335]
[1737730288905,3.7265,268.34,268.32,0.02370335]
[1737730290212,0.02389781,268.38,268.32,0.02370335]
[1737730291103,0.02389781,268.38,268.21,22.45780801]
[1737730291407,3.7259,268.38,268.32,3.7266]
[1737730291807,26.23780801,268.43,268.21,22.45780801]
[1737730292309,0.02550933,268.35,268.21,22.45780801]
[1737730293203,3.78,268.43,268.33,3.7264]
[1737730293404,4.9518,268.53,268.26,22.45780801]
[1737730293606,22.45780801,268.53,268.27,1.5872]
[1737730294008,22.45780801,268.53,268.31,22.45780801]
[1737730294202,22.45780801,268.58,268.32,1.1831]
[1737730294410,22.45780801,268.53,268.32,1.1831]
[1737730294612,0.02601723,268.45,268.39,0.0283726]
[1737730294815,3.7255,268.41,268.39,0.0283726]
[1737730295107,0.0254681,268.43,268.37,0.02430977]
[1737730295312,22.48327611,268.43,268.37,0.02430977]
[1737730295508,22.45780801,268.43,268.2,1.2092]
[1737730295706,22.48463798,268.43,268.21,1.4808]
[1737730296106,3.74,268.42,268.21,1.4808]
[1737730296510,22.45780801,268.38,268.21,1.4808]
[1737730296908,0.02692683,268.32,268.21,1.4808]
[1737730297215,0.02692683,268.32,268.25,3.7276]
[1737730297514,0.02692683,268.32,268.22,1.2092]
[1737730298011,3.74,268.42,268.24,22.45780801]
[1737730298410,3.74,268.42,268.29,3.727]
[1737730298611,3.74,268.42,268.22,1.2092]
[1737730299311,0.02528301,268.35,268.3,3.7269]
[1737730300613,4.97119447,268.35,268.19,19.19348964]
[1737730300813,14.83773438,268.36,268.28,22.45780801]
[1737730301417,12.86983438,268.36,268.35,3.7262]
[1737730301614,35.6317917,268.37,268.35,3.7262]
[1737730302015,33.26903383,271.57,268.33,22.48361729]
[1737730302016,25.79581801,268.67,268.33,22.48361729]
[1737730302314,22.45780801,268.62,268.39,22.45780801]
[1737730302514,3.7236,268.54,268.41,3.7254]
[1737730302818,22.45780801,268.57,268.32,22.45780801]
[1737730303317,0.02433684,268.47,268.45,3.7248]
[1737730303509,1.2553,268.66,268.43,22.45780801]
[1737730303712,3.7227,268.61,268.51,3.7239]
[1737730303912,1.2553,268.66,268.63,118.56508192]
[1737730304111,1.2553,268.66,268.32,22.45780801]
[1737730304409,23.71310801,268.66,268.42,22.45780801]
[1737730304614,0.02637343,268.52,268.46,0.0284224]
[1737730304814,0.02637343,268.52,268.46,3.7531224]
[1737730305217,0.02637343,268.52,268.46,0.0284224]
[1737730306711,0.02637343,268.52,268.47,22.45780801]
[1737730306917,0.02637343,268.52,268.47,23.69040801]
[1737730307118,0.02637343,268.52,268.5,3.724]
[1737730308118,1.2553,268.66,268.47,23.69040801]
[1737730308310,1.2553,268.66,268.6,3.7227]
[1737730308814,1.2553,268.66,268.61,3.7226]
[1737730309017,3.33801,268.67,268.47,23.69040801]
[1737730309320,0.02688127,268.6,268.58,3.723]
[1737730310019,3.33801,268.67,268.65,3.722]
[1737730310315,3.33801,268.67,268.58,22.45780801]
[1737730310619,3.33801,268.67,268.47,23.69040801]
[1737730311216,0.0266999,268.6,268.54,0.02590456]
[1737730313521,0.0266999,268.6,268.42,22.45780801]
[1737730313718,1.1988,268.66,268.42,22.45780801]
[1737730313719,1.5217,268.65,268.42,22.45780801]
[1737730314122,3.7232,268.57,268.5,3.7241]
[1737730314415,1.5217,268.65,268.5,3.7241]
[1737730314623,3.7233,268.57,268.5,3.7241]
[1737730314816,0.02521224,268.6,268.55,0.02463553]
[1737730315023,1.5217,268.65,268.47,22.45780801]
[1737730315323,0.02844315,268.6,268.55,0.0278519]
[1737730315720,3.7233,268.57,268.55,0.0278519]
[1737730316023,0.02844315,268.6,268.47,22.45780801]
[1737730316224,3.7236,268.54,268.48,3.7244]
[1737730316421,1.5217,268.65,268.42,22.45780801]
[1737730317021,22.45780801,268.63,268.42,22.45780801]
[1737730317324,3.7239,268.52,268.51,0.02676265]
[1737730317524,0.02701279,268.56,268.43,3.7251]
[1737730317715,3.72,268.59,268.37,22.45780801]
[1737730318322,1.5217,268.65,268.47,22.45780801]
[1737730318623,0.02741585,268.59,268.53,0.0285404]
[1737730319327,3.7235,268.55,268.53,0.0285404]